Cogmind - Beta 11.1 @@@ ROGUE MODE // 2022.12.03 @ 19:11:02 Player: Richard Blunt Result: Destroyed by Y-45 Defender with Beam Rifle Performance ------------- Evolutions (1) 500 Regions Visited (2) 400 Robots Destroyed (64) 320 Value Destroyed (1238) 1238 Prototype IDs (5) 100 Alien Tech Used (0) 0 Bonus (0) 0 TOTAL SCORE: 2558 Bonus ------- None Cogmind --------- Core Integrity 0/400 Matter 207/300 Energy 265/265 System Corruption 0% Temperature Cool (9) Movement Treading (320) Ox2 Location -9/Materials Parts ------- > --- POWER (1) -------- Improved Ion Engine > --- PROPULSION (3) --- Light Treads Light Treads > --- UTILITY (3) ------ Improved Heat Sink Huge Storage Unit Signal Interpreter > --- WEAPON (2) ------- Assault Cannon Assault Cannon > --- INVENTORY (25) --- Ion Engine Light Ion Engine Aerolev Unit Aerolev Unit Aerolev Unit Aerolev Unit Cooling System Medium Storage Unit Large Storage Unit High-capacity Storage Unit Visual Processing Unit Advanced Targeting Computer Light Armor Plating High-powered Tractor Beam Improved Medium Laser Field Laser Field Laser Heavy Assault Rifle Assault Cannon Assault Cannon Plasma Cutter Peak State ------------ > --- POWER ------------ Improved Ion Engine > --- PROPULSION ------- Light Treads Light Treads Light Treads > --- UTILITY ---------- Improved Heat Sink Huge Storage Unit Signal Interpreter > --- WEAPON ----------- Assault Cannon Assault Cannon > --- INVENTORY -------- Ion Engine Light Ion Engine Light Treads Aerolev Unit Aerolev Unit Aerolev Unit Aerolev Unit Heat Sink Medium Storage Unit Large Storage Unit High-capacity Storage Unit Visual Processing Unit Advanced Targeting Computer Light Armor Plating Improved Medium Laser Field Laser Field Laser Light Assault Rifle Heavy Assault Rifle Assault Cannon Assault Cannon Grenade Launcher Plasma Cutter [Rating: 21] Favorites ----------- Power Ion Engine Engine Ion Engine Power Core Light Nuclear Core Propulsion Light Treads Treads Light Treads Leg Aluminum Leg Wheel Wheel Hover Unit Aerolev Unit Flight Unit Improved Flight Unit Utility Signal Interpreter Device Improved Heat Sink Storage Huge Storage Unit Processor Signal Interpreter Weapon Small Laser Energy Gun Small Laser Ballistic Gun Assault Rifle Ballistic Cannon Assault Cannon Launcher Grenade Launcher Special Weapon Plasma Cutter Build | -11 -10 -9 ------- Run | Scr Mat Mat Slots Evolved 2 | . . 2 Power . | . . . Propulsion 1 | . . 1 Utility 1 | . . 1 Weapon . | . . . Parts Attached 61 | 7 19 35 Power 6 | 1 3 2 Engine 5 | 1 2 2 Core 1 | . 1 . Reactor . | . . . Propulsion 20 | 2 4 14 Treads 14 | 1 2 11 Leg 1 | . . 1 Wheel 3 | 1 2 . Hover 1 | . . 1 Flight 1 | . . 1 Utility 10 | 2 4 4 Device 3 | 1 . 2 Storage 6 | 1 3 2 Processor 1 | . 1 . Hackware . | . . . Protection . | . . . Artifact . | . . . Weapon 25 | 2 8 15 Energy Gun 13 | 2 5 6 Energy Cannon . | . . . Ballistic Gun 6 | . 3 3 Ballistic Cannon 3 | . . 3 Launcher 2 | . . 2 Special Weapon 1 | . . 1 Impact Weapon . | . . . Slashing Weapon . | . . . Piercing Weapon . | . . . Special Melee Weapon . | . . . Unidentified Prototypes 3 | . . 3 Parts Lost 20 | . 7 13 Power 4 | . 2 2 Propulsion 10 | . 2 8 Utility 1 | . 1 . Weapon 5 | . 2 3 Highest Loss Streak 5 | . 3 5 To Critical Strikes . | . . . Average Slot Usage (%) 97 | . 96 98 Engine 11 | . 11 10 Treads 26 | . 18 31 Wheel 4 | . 9 . Device 7 | . 2 11 Storage 12 | . 14 11 Processor 10 | . 10 11 Energy Gun 16 | . 21 13 Ballistic Gun 2 | . 4 1 Ballistic Cannon 4 | . . 6 Naked Turns . | . . . Heaviest Build 98 | 12 29 98 Greatest Support 60 | 10 40 60 Greatest Overweight (x) 9 | 1 2 9 Average Overweight (x) 1 | . 1 1 Largest Inventory Capacity 25 | 8 15 25 Average Capacity 20 | 7 14 24 Most Carried 25 | 6 15 25 Average Carried 17 | 4 11 22 Final Capacity 25 | 8 15 25 Final Carried 21 | 6 15 21 Class Distribution -------------------- 63% | Scavenger-Mutant 36% | Mutant Dominant Class ---------------- Mutant | -10/Materials Scavenger-Mutant | -9/Materials Resources | -11 -10 -9 ----------- Run | Scr Mat Mat Matter Collected 1217 | 268 333 616 Remotely . | . . . Salvage Created 2272 | 100 887 1285 Parts 117 | 4 45 68 Haulers Intercepted 5 | . 1 4 Recyclers Shooed 3 | . 3 . Parts Field Recycled . | . . . Retrieved Matter . | . . . Parts Self-Destructed . | . . . Prevented . | . . . Kills | -11 -10 -9 ------- Run | Scr Mat Mat Combat Hostiles Destroyed 37 | . 15 22 Guns 24 | . 15 9 Cannons 7 | . . 7 AOE 5 | . . 5 Classes Destroyed 9 | 2 4 3 Worker 9 | . 2 7 Builder 2 | . . 2 Tunneler 1 | 1 . . Hauler 5 | . 1 4 Recycler 7 | 1 1 5 Watcher 3 | . 2 1 Swarmer 10 | . . 10 Grunt 22 | . 15 7 Sentry 5 | . . 5 Best Kill Streak 10 | 2 5 10 Combat Bots Only 4 | . 3 4 Max Kills in Single Turn 4 | 1 2 4 Gunslinging . | . . . Exploded 3 | . . 3 Melee . | . . . Uniques/NPCs Destroyed . | . . . Combat | -11 -10 -9 -------- Run | Scr Mat Mat Damage Taken 2826 | . 981 1845 Core 630 | . 221 409 Absorbed by Shields . | . . . Core Remaining (%) 55 | 100 11 . Volleys Fired 177 | 7 90 80 Largest 2 | 2 2 2 Hottest 115 | 90 105 115 Shots Fired 329 | 14 159 156 Gun 283 | 14 159 110 Cannon 42 | . . 42 Launcher 3 | . . 3 Special 1 | . . 1 Kinetic 134 | . 54 80 Thermal 192 | 14 105 73 Explosive 3 | . . 3 Electromagnetic . | . . . Robot Hit Streak 14 | 5 10 14 Robot Miss Streak 5 | 2 5 2 Penetration Max . | . . . Secondary Targets . | . . . Shots Hit Robots 222 | 9 101 112 Core Hits 105 | 3 42 60 Critical Kills . | . . . Critical Parts Destroyed . | . . . Critical Strikes 12 | . 7 5 Burn 12 | . 7 5 Melee Attacks . | . . . Impact . | . . . Slashing . | . . . Piercing . | . . . Sneak Attacks . | . . . Combat Hostiles . | . . . Follow-up Attacks . | . . . Damage Inflicted 3701 | 107 1415 2179 Guns 2513 | 107 1357 1049 Cannons 707 | . . 707 Explosions 347 | . . 347 Melee . | . . . Ramming 121 | . 58 63 Kinetic 1487 | . 515 972 Thermal 1746 | 107 842 797 Explosive 347 | . . 347 Electromagnetic . | . . . Impact . | . . . Slashing . | . . . Piercing . | . . . Highest Corruption 1 | . 1 . Average Corruption 1 | . 1 . Corruption Purged . | . . . Corruption Blocked . | . . . Effects 1 | . 1 . Heat Flow Errors 1 | . 1 . Overload Shots . | . . . Overflow Damage 9 | . . 9 Projectiles 9 | . . 9 Explosions . | . . . Melee . | . . . Knockbacks 5 | . . 5 Impact 1 | . . 1 Kinetic 4 | . . 4 Secondary . | . . . Self-Inflicted Damage 70 | . 25 45 Shots 2 | . . 2 Rammed 14 | . 7 7 Targets Rammed 15 | . 7 8 Kicked . | . . . Crushed 1 | . . 1 Highest Temperature 459 | 150 459 171 Average Temperature 123 | 65 149 58 Received Heat Transfer 1170 | . 525 645 Effects 5 | . 5 . Shutdowns 2 | . 2 . Matter Decay 1 | . 1 . Damage (minor) 2 | . 2 . Siege Activations . | . . . Robots Corrupted . | . . . Combat Hostiles . | . . . Parts Fried . | . . . Impact Corruptions . | . . . Robots Melted 1 | . . 1 Combat Hostiles 1 | . . 1 Parts Melted 16 | 2 7 7 Heat Transferred 5231 | 285 2598 2348 Parts Sabotaged . | . . . Parts Stolen . | . . . Parts Stripped . | . . . Power Chain Reactions . | . . . Missiles Intercepted . | . . . Alert | -11 -10 -9 ------- Run | Scr Mat Mat Peak Influence 315 | 10 290 315 Initial 122 | . 6 122 Average 146 | 2 117 170 Maximum Alert Level 1 | . 1 1 Low Security (%) 73 | 100 88 63 Level 1 26 | . 11 36 Level 2 . | . . . Level 3 . | . . . Level 4 . | . . . Level 5 . | . . . High Security . | . . . Max Security . | . . . Squads Dispatched 7 | . 4 3 Investigation 3 | . 3 . Extermination . | . . . Reinforcement 4 | . 1 3 Assault . | . . . Garrison . | . . . Intercept . | . . . Searches Triggered . | . . . Construction Impeded . | . . . Haulers Reinforced . | . . . Active Scanning Responses . | . . . Cargo Convoy Interrupts . | . . . Stealth | -11 -10 -9 --------- Run | Scr Mat Mat Distress Signals 7 | . 3 4 Communications Jammed . | . . . Distress Signals . | . . . Times Spotted 73 | . 28 45 Peak Tracking Total 10 | . 5 10 Tactical Retreats 3 | . 2 1 Traps | -11 -10 -9 ------- Run | Scr Mat Mat Traps Triggered 3 | . 2 1 Indirectly . | . . . Trap Hack Attempts . | . . . Triggered . | . . . Disarmed . | . . . Reprogrammed . | . . . Reused . | . . . Traps Extracted . | . . . Installed . | . . . Triggered . | . . . Machines | -11 -10 -9 ---------- Run | Scr Mat Mat Machines Disabled 1 | . 1 . Max in Single Turn 1 | . 1 . Machines Sabotaged . | . . . Garrisons Compromised . | . . . Overloaded Fab Kills . | . . . Hacking | -11 -10 -9 --------- Run | Scr Mat Mat Machines Accessed 10 | . 5 5 Terminals 7 | . 3 4 Fabricators . | . . . Repair Stations . | . . . Recycling Units 2 | . 2 . Scanalyzers 1 | . . 1 Garrison Access . | . . . Total Hacks 27 | . 7 20 Successful 19 | . 5 14 Failed 7 | . 1 6 Catastrophic . | . . . Database Lockouts 1 | . 1 . Manual 19 | . 10 9 Terminals 17 | . 5 12 Fabricators . | . . . Repair Stations . | . . . Recycling Units 2 | . 2 . Scanalyzers 8 | . . 8 Garrison Access . | . . . Terminal Hacks 9 | . 3 6 Robot Analysis 4 | . 2 2 Prototype ID Bank 1 | . . 1 Unreport Threat 1 | . . 1 Locate Traps 1 | . . 1 Recall Investigation 1 | . 1 . Zone Layout 1 | . . 1 Fabricator Hacks . | . . . Repair Station Hacks . | . . . Recycling Unit Hacks . | . . . Scanalyzer 8 | . . 8 Insert Component 4 | . . 4 Analyze 4 | . . 4 Garrison Access Hacks . | . . . Unauthorized Hacks 2 | . 2 . Terminals . | . . . Fabricators . | . . . Repair Stations . | . . . Recycling Units 2 | . 2 . Tunnel 2 | . 2 . Scanalyzers . | . . . Garrison Access . | . . . Data Cores Recovered . | . . . Used . | . . . Hacking Detections 5 | . 2 3 Full Trace Events 1 | . 1 . Feedback Events . | . . . Feedback Blocked . | . . . Robot Schematics Acquired . | . . . Robots Built . | . . . Authchips . | . . . Time . | . . . Total Robot Build Rating . | . . . Part Schematics Acquired 4 | . . 4 Parts Built . | . . . Authchips . | . . . Time . | . . . Total Part Build Rating . | . . . Parts Repaired . | . . . Time . | . . . Parts Recycled . | . . . Recycled Matter . | . . . Retrieved Matter . | . . . Retrieved Components . | . . . Parts Scanalyzed 4 | . . 4 Part Schematics Acquired 4 | . . 4 Parts Damaged . | . . . Bothacking | -11 -10 -9 ------------ Run | Scr Mat Mat Used RIF Installer . | . . . Robots Hacked . | . . . Non-combat . | . . . Combat . | . . . Robot Hacks Applied . | . . . Relay Couplers Released . | . . . Fabnet Peak Effective % . | . . . Robots Rewired . | . . . Allies Hacked . | . . . Hacks Repelled . | . . . Allies | -11 -10 -9 -------- Run | Scr Mat Mat Total Allies . | . . . Largest Group . | . . . Highest-Rated Group . | . . . Highest-Rated Ally . | . . . Total Orders . | . . . Ally Attacks . | . . . Total Damage . | . . . Kills . | . . . Allies Corrupted . | . . . Allies Melted . | . . . Intel | -11 -10 -9 ------- Run | Scr Mat Mat Robot Analysis Total 4 | . 2 2 Derelict Logs Recovered . | . . . Drone Launches . | . . . Drone Recoveries . | . . . Exploration | -11 -10 -9 ------------- Run | Scr Mat Mat Turns Passed 2987 | 78 1108 1801 Spaces Moved 1308 | 47 636 625 Core 2 | 2 . . Treads 721 | . 170 551 Legs . | . . . Wheels 585 | 45 466 74 Hover . | . . . Flight . | . . . Fastest Speed 50 | 50 95 125 Average Speed 173 | 87 121 232 Slowest Speed 480 | 95 160 480 Overloaded Moves . | . . . Propulsion Burnouts . | . . . Robots Hopped . | . . . Cave-ins Triggered . | . . . Exploration Rate (%) 47 | 4 77 62 Regions Visited 2 Branch Regions . Pre-discovered Areas 2 | . 2 . Known Exits Taken 1 | . 1 . Unknown Exits Taken 1 | 1 . . Scrap Searched . | . . . Spaces Dug . | . . . Terrain Destroyed 30 | . . 30 Melee . | . . . Projectile 4 | . . 4 AOE 26 | . . 26 Terrain Rammed . | . . . Walls Destroyed . | . . . Machines Disabled . | . . . Actions | -11 -10 -9 --------- Run | Scr Mat Mat Total 1689 | 66 806 817 Wait 57 | . 43 14 Move 1306 | 46 635 625 Hop . | . . . Pick Up 46 | 6 9 31 Fast Attach 15 | 7 3 5 Attach 16 | . 6 10 Detach 3 | . 2 1 Swap 30 | . 10 20 Drop 24 | . 1 23 Fire 177 | 7 90 80 Melee . | . . . Ram 5 | . 5 . Kick . | . . . Crush 10 | . 2 8 Escape Stasis . | . . . Rewire . | . . . Trap . | . . . Miscellaneous . | . . . Route ------- -11/Scrapyard -10/Materials (discovered 3 exits: *Mat x2 / *Min) -9/Materials (discovered 4 exits: *Mat / *Min / *Sto x2) History --------- Turn | Location | Event 26 | -11/Scrapyard | Discovered new exit (range 15) 79 | -11/Scrapyard | Entered Materials 153 | -10/Materials | Discovered new exit (range 7) 312 | -10/Materials | Build established: Mutant 413 | -10/Materials | Central database locked down 423 | -10/Materials | Identified exit to Mines 509 | -10/Materials | Lost 3 parts (1p1n1w) 589 | -10/Materials | Core integrity fell below 50% 858 | -10/Materials | Discovered new exit (range 16) 1084 | -10/Materials | Core integrity fell below 20% 1165 | -10/Materials | Discovered new exit (range 15) 1185 | -10/Materials | Identified exit to Materials 1187 | -10/Materials | Entered another Materials area 1187 | -9/Materials | Evolved 2 slots: Propulsion x1, Utility x1 1410 | -9/Materials | Build established: Scavenger-Mutant 1519 | -9/Materials | Discovered new exit (range 6) 1585 | -9/Materials | Identified exit to Storage 1645 | -9/Materials | Discovered new exit (range 7) 1698 | -9/Materials | Identified exit to Mines 1702 | -9/Materials | Lost 3 parts (1n2w) 1923 | -9/Materials | Discovered new exit (range 6) 1943 | -9/Materials | Identified exit to Materials 2334 | -9/Materials | Discovered exit to Storage (range 11) 2969 | -9/Materials | Core integrity fell below 50% 2983 | -9/Materials | Core integrity fell below 20% 2988 | -9/Materials | Destroyed by Y-45 Defender with Beam Rifle Last Messages --------------- 02951_ A bubble of electromagnetic force engulfs the area. 02953_ Acquired 19 matter. 02959_ U-05 Engineer lays Concrete. 02961_ K-01 Serf collects debris. 02969_ G-34 Mercenary destroyed. 02969_ K-01 Serf destroyed. 02970_ Grenade Launcher destroyed. 02970_ Critical hit (Burn: +37). 02971_ Lgt. Treads destroyed. 02973_ G-47 Trooper knocked back. 02975_ U-05 Engineer lays Concrete. 02975_ Lgt. Treads destroyed. 02975_ U-05 Engineer destroyed. 02976_ K-01 Serf collects debris. 02980_ Lgt. Treads destroyed. 02981_ K-01 Serf collects debris. 02981_ Slammed into Y-45 Defender. 02981_ Lgt. Treads destroyed. 02982_ G-47 Trooper destroyed. 02984_ Slammed into Y-45 Defender. Map ----- +----------------------------------------------------+ | ?????????????????????????????????????? | | ?????????????????????????????????????? | | ?????????????????????????????????????? | | ?????????????????????????????????????? | | ?????????????????????????????????????? | | ?????????????????????????????????????? | | ?????????????????????????????????????? | | ?????????????????????????????????????? | | ?????????????????????????????????????? | | ?????????????????????????????????????? | | ???????????????? ????????????????????? | | ???????????????#+##??????????????????? | | ??????????????? ???????????????? | | ??????????????? #???????????????? | | ??????????????? #???????????????? | | ????????????##? #???????????????? | | ???????? ??? ? #???????????????? | | ???????? ? # #???????????????? | | ????????? ! +% #???????????????? | | ?????????? # g #???????????????? | | ??????????? "" g #t########????????? | | ??????????? Y" g[ #????????? | | ????????????"" Y=% #???###### | | ????????????? [= %! ????# | | ??????######## %!=! """?????# """ | | ???# @ *=%Y """?????# """ | | ????# """ """Y#!=%# ** """?????# """ | | ??????""" """ #|%=#?????????????# | | ???????"" """ # * # #???# """ | | ??????? # #### ######???# """ | | ???????!!= # #??###????????# """ | | ???????!!= #=! #?????????????# | | ???????!!= [ #% ###################+ | | ????????#######!%! % | | ??????????????#= = % % | | ??????????????#===! % | | ?????????????## #################### | | ?????????????## #???????????????##?# | | ?????????????## #??????????????????# | | ??????????????# #??????????????????# | | ??????????????# #?????????########## | | ??????????????#%#?????????# # | | ??????????????# #?######??# """" ""# | | ??????????????# #?"""""#??# """" T"# | | ??????????????# #?""T""#### """" ""# | | ??????????????# #? # # | | ??????????????# #? # """" + | | ??????????????# #? # """" # | | ??????????????? ?? # """" + | | ??????????????? ?? # # | +----------------------------------------------------+ Best States ------------- Heat Dissipation 42 Energy Generation 14 Energy Capacity 265 Matter Stores 300 Matter Capacity 300 Sight Range 16 Terrain Scan Density 10 Evasion (%) 44 Recoil Reduction 3 Item Schematics ----------------- Grenade Launcher | -9/Materials | Scanalyzed Med. Storage Unit | -9/Materials | Scanalyzed Hcp. Storage Unit | -9/Materials | Scanalyzed Aerolev Unit | -9/Materials | Scanalyzed Robot Schematics ------------------ None Fabricated ------------ Nothing Alien Tech Used ----------------- None Achievements -------------- None Challenges ------------ None Game ------ Seed ElectronMiniProtomatter Manual? 0 Play Time 00:35:00 Cumulative 96.1 hours Start 2022.12.03 @ 18:34:16 End 2022.12.03 @ 19:11:02 Sessions 1 Manual Loads 0 Difficulty Rogue Special Mode None Game No. 27 Rogue 27 Adventurer 0 Explorer 0 Win Type - Total 0 Types 0/0/0/0/0/0/0/0/0 Lore% 42 Gallery% 45 Achievement% 40 Wizard Run 0 Options --------- ASCII 0 Keyboard 1 Movement Vi Keybinds 0 Fullscreen 1 Font 18/SmallcapsGlow Map View 76x50 Tactical HUD 1 Map Filters NONE Filters NONE Steam 1 RUN: d00ef25c-b7c7-432a-9a75-0647795202b3